bitfinex-derivatives/quotes_SOLF0:USTF0_20251216
["timestamp","ask_amount","ask_price","bid_price","bid_amount"]
[1765894624222,109.7283,127.62,127.52,108.44265427]
[1765894624422,109.7283,127.62,127.58,1.94760363]
[1765894624423,1.12,127.61,127.58,1.94760363]
[1765894624830,1.12,127.62,127.59,1.94760363]
[1765894625022,1.12,127.62,127.58,3.4]
[1765894625224,7.0544,127.61,127.59,0.05365805]
[1765894625441,7.10910724,127.61,127.59,0.05952589]
[1765894625635,0.05470724,127.61,127.59,3.45952589]
[1765894626026,0.05470724,127.61,127.6,1.9451463]
[1765894626235,1.17470724,127.61,127.59,0.05952589]
[1765894627538,7.0548,127.6,127.59,0.05952589]
[1765894627831,0.05470724,127.61,127.59,3.45952589]
[1765894628135,0.05470724,127.61,127.6,1.94185272]
[1765894628325,0.05470724,127.61,127.59,0.05952589]
[1765894629840,0.05470724,127.61,127.6,1.94002816]
[1765894630040,0.05470724,127.61,127.6,5.34002816]
[1765894630336,0.05470724,127.61,127.6,3.4]
[1765894630930,0.05470724,127.61,127.59,3.45952589]
[1765894631236,134.67942932,127.68,127.59,3.45952589]
[1765894631437,134.67942932,127.68,127.58,66.38]
[1765894631438,134.67942932,127.68,127.62,1.93922918]
[1765894631630,7.0512,127.67,127.64,3.4]
[1765894631834,7.0512,127.67,127.65,1.93922918]
[1765894632029,7.0512,127.67,127.64,3.4]
[1765894632236,7.10413357,127.67,127.65,0.0563003]
[1765894632437,7.10519055,127.67,127.65,0.05065956]
[1765894634337,7.10519055,127.67,127.65,3.45065956]
[1765894634640,7.10519055,127.67,127.65,0.05065956]
[1765894634834,7.10519055,127.67,127.65,3.45065956]
[1765894635140,0.05399055,127.67,127.66,3.4]
[1765894637340,0.00399055,127.67,127.66,3.4]
[1765894637734,1.17,127.74,127.68,3.4]
[1765894637939,109.6093,127.76,127.68,3.4]
[1765894637940,1.22,127.76,127.7,3.4]
[1765894638142,110.8149,127.78,127.72,1.93998068]
[1765894638343,1.22,127.78,127.74,3.4]
[1765894638831,0.05006599,127.77,127.75,0.0527453]
[1765894639033,1.27006599,127.77,127.75,0.0527453]
[1765894639433,0.05006599,127.77,127.75,0.0527453]
[1765894640042,7.09556599,127.77,127.75,0.0527453]
[1765894641443,0.05006599,127.77,127.75,0.0527453]
[1765894642439,0.05006599,127.77,127.75,3.4527453]
[1765894642642,0.05006599,127.77,127.76,5.33599016]
[1765894642840,0.05006599,127.77,127.76,3.4]
[1765894646048,0.05006599,127.77,127.75,3.4527453]
[1765894646547,0.05006599,127.77,127.75,10.4990453]
[1765894646742,1.22,127.84,127.76,3.4]
[1765894647039,1.22,127.84,127.78,1.93202487]
[1765894647436,7.0425,127.83,127.79,3.4]
[1765894647645,8.2625,127.83,127.79,3.4]
[1765894647846,0.05021275,127.82,127.8,0.0515684]
[1765894648147,1.22,127.81,127.8,0.0515684]
[1765894649353,2.78,127.81,127.8,0.0515684]
[1765894649644,1.17,127.79,127.75,69.76]
[1765894649953,1.17,127.82,127.78,3.4]
[1765894650145,8.2133,127.81,127.78,3.4]
[1765894650341,1.17,127.81,127.76,3.4]
[1765894650649,0.05512495,127.8,127.77,1.98071347]
[1765894650948,0.05512495,127.8,127.78,5.32931667]
[1765894651153,0.05512495,127.8,127.79,5.32931667]
[1765894651354,0.05512495,127.8,127.79,3.4]
[1765894652252,0.05512495,127.8,127.77,3.45135186]
[1765894652452,0.05512495,127.8,127.78,5.32773545]
[1765894652653,0.05512495,127.8,127.79,5.3276169]
[1765894653149,0.05512495,127.8,127.79,3.4]
[1765894654644,110.6838,127.86,127.79,3.4]
[1765894654950,8.2019,127.84,127.81,1.92596674]
[1765894655143,7.0419,127.84,127.81,5.32596674]
[1765894655343,7.0419,127.84,127.81,3.4]
[1765894655842,7.09307729,127.84,127.81,3.45245136]
[1765894656852,0.05117729,127.84,127.81,3.45245136]
[1765894657050,0.05117729,127.84,127.82,5.32400988]
[1765894657244,0.05117729,127.84,127.82,3.4]
[1765894657953,0.05117729,127.84,127.83,1.92290642]
[1765894659948,8.25317729,127.84,127.81,0.05245136]
[1765894660349,8.25317729,127.84,127.81,3.45245136]
[1765894660350,0.05117729,127.84,127.81,3.45245136]
[1765894660546,0.00117729,127.84,127.83,3.4]
[1765894660956,109.4744,127.92,127.85,3.4]
[1765894661146,110.6844,127.92,127.86,5.31999184]
[1765894661449,1.21,127.92,127.88,3.4]
[1765894661959,1.26143784,127.91,127.89,0.06024249]
[1765894662142,7.0384,127.9,127.89,0.06024249]
[1765894663357,0.05143784,127.91,127.89,0.06024249]
[1765894663560,1.26143784,127.91,127.89,0.06024249]
[1765894664060,1.15,127.88,127.83,69.72]
[1765894664360,1.15,127.88,127.85,1.9160036]
[1765894664555,7.0392,127.89,127.86,3.4]
[1765894664944,110.6346,127.9,127.86,3.45694877]
[1765894665151,1.2014758,127.89,127.86,0.05694877]
[1765894665456,1.2,127.98,127.9,3.4]
[1765894665660,110.6193,127.98,127.92,5.31405024]
[1765894665862,8.2356,127.95,127.92,3.4]
[1765894666158,1.2,127.96,127.93,1.91376573]
[1765894666347,1.2,127.96,127.92,3.4]
[1765894666547,109.4124,127.99,127.89,66.3]
[1765894666548,133.74467595,127.99,127.93,5.3118545]
[1765894666759,1.2,127.97,127.93,3.4]
[1765894666959,7.0357,127.95,127.94,0.05077685]
[1765894667150,8.2357,127.95,127.94,0.05077685]
[1765894667551,7.0357,127.95,127.94,0.05077685]
[1765894670362,8.2357,127.95,127.94,0.05077685]
[1765894671161,7.0357,127.95,127.94,0.05077685]
[1765894671956,8.2357,127.95,127.94,0.05077685]
[1765894672467,7.0357,127.95,127.94,0.05077685]
[1765894673768,8.2357,127.95,127.94,0.05077685]
[1765894674569,7.0357,127.95,127.94,0.05077685]
[1765894675469,8.2357,127.95,127.94,0.05077685]
[1765894676960,1.15,127.92,127.87,3.4]
[1765894677161,1.15,127.92,127.9,1.91556426]
[1765894677872,1.15,127.89,127.84,3.4]
[1765894678165,1.15,127.88,127.83,66.26]
[1765894678366,1.15,127.88,127.83,69.66]
[1765894678571,7.04,127.87,127.84,3.4]
[1765894678766,129.03053324,127.92,127.84,3.4]
[1765894678967,0.05944215,127.89,127.87,0.05200498]
[1765894679373,0.05944215,127.89,127.87,3.45200498]
[1765894679769,0.05944215,127.89,127.88,5.3205161]
[1765894680070,1.21,127.93,127.88,3.4]
[1765894680273,1.21,127.93,127.89,1.92036894]
[1765894680478,1.21,127.9,127.85,3.4]
[1765894680677,110.6836,127.92,127.86,5.32215944]
[1765894680867,1.21,127.88,127.87,1.92215944]
[1765894681068,1.21,127.87,127.82,3.4]
[1765894681474,7.0416,127.84,127.79,3.4]
[1765894681680,8.2516,127.84,127.79,3.4]
[1765894681877,1.21,127.84,127.79,3.4]
[1765894682180,1.21,127.84,127.76,66.26]
[1765894682181,1.26149923,127.83,127.8,1.97717064]
[1765894682379,1.26149923,127.83,127.8,0.05235764]
[1765894682677,0.05149923,127.83,127.8,5.3789355]
[1765894682874,1.26149923,127.83,127.8,0.05235764]
[1765894683071,7.0428,127.82,127.8,3.45235764]
[1765894683271,0.05149923,127.83,127.8,3.45235764]
[1765894683672,0.05149923,127.83,127.81,5.18733945]
[1765894683868,0.05149923,127.83,127.81,3.26]
[1765894684273,7.09369923,127.83,127.8,0.05235764]
[1765894684673,8.31369923,127.83,127.8,0.05235764]
[1765894684875,7.0429,127.82,127.8,3.31235764]
[1765894685076,0.05149923,127.83,127.81,5.18807146]
[1765894685279,0.05149923,127.83,127.81,3.26]
[1765894685682,0.05149923,127.83,127.82,5.18864342]
[1765894685981,0.05149923,127.83,127.82,3.26]
[1765894687080,5.62368459,127.9,127.84,3.26]
[1765894687272,9.14301564,127.93,127.86,5.18882383]
[1765894687477,7.0381,127.91,127.87,5.18882383]
[1765894687673,1.27,127.93,127.88,1.92882383]
[1765894687674,1.27,127.92,127.88,1.92882383]
[1765894687887,110.7509,127.91,127.83,3.26]
[1765894688090,110.7509,127.91,127.75,438.4381]
[1765894688091,8.31,127.87,127.86,0.05701447]
[1765894688393,110.793,127.86,127.8,3.26]
[1765894688584,1.27,127.83,127.77,3.26]
[1765894688898,1.27,127.83,127.8,1.93094903]
[1765894689184,7.0427,127.82,127.8,1.93094903]
[1765894689385,7.09766912,127.82,127.8,1.98088113]
[1765894689580,7.09766912,127.82,127.8,0.0499321]
[1765894689779,7.09766912,127.82,127.8,1.9811197]
[1765894690089,7.09766912,127.82,127.8,0.0499321]
[1765894690286,1.27,127.81,127.8,0.0499321]
[1765894696980,1.27,127.81,127.74,3.26]
[1765894697180,1.22,127.79,127.75,1.93250771]
[1765894697389,74.21301564,127.8,127.76,3.26]
[1765894697594,1.22,127.82,127.77,1.93250771]
[1765894697888,110.7773,127.82,127.76,3.26]
[1765894698090,0.04965576,127.8,127.78,0.05575482]
[1765894698283,1.26965576,127.8,127.78,0.05575482]
[1765894699186,8.2644,127.79,127.78,0.05575482]
[1765894699382,1.22,127.79,127.73,3.26]
[1765894699582,1.22,127.79,127.74,1.93126863]
[1765894699783,1.22,127.79,127.74,5.19126863]
[1765894699987,1.22,127.79,127.74,3.26]
[1765894700491,1.27110017,127.78,127.75,0.05185033]
[1765894700688,7.0457,127.77,127.75,0.05185033]
[1765894700985,8.2657,127.77,127.75,0.05185033]
[1765894701192,1.22,127.76,127.75,0.05185033]
[1765894702494,1.22,127.76,127.68,3.26]
[1765894702798,8.2186,127.72,127.7,1.9291775]
[1765894703099,1.17,127.73,127.71,1.9291775]
[1765894703392,1.17,127.73,127.69,3.26]
[1765894703586,0.05780967,127.72,127.7,1.987627]
[1765894703789,0.05780967,127.72,127.7,0.05981821]
[1765894703999,0.05780967,127.72,127.7,1.987627]
[1765894704199,7.10610967,127.72,127.7,0.05981821]
[1765894704391,8.27610967,127.72,127.7,1.98617602]
[1765894704698,8.27610967,127.72,127.7,0.05981821]
[1765894704991,1.17,127.71,127.7,0.05981821]
[1765894705197,1.17,127.7,127.66,3.26]
[1765894705390,1.17,127.7,127.68,1.92526967]
[1765894705784,7.0501,127.69,127.68,1.92526967]
[1765894706393,1.22896268,127.7,127.68,1.92526967]
[1765894707392,1.17,127.69,127.67,0.05581141]
[1765894707786,1.17,127.68,127.67,0.05581141]
[1765894707988,7.0504,127.68,127.67,0.05581141]
[1765894708192,8.2204,127.68,127.67,0.05581141]
[1765894708393,1.17,127.67,127.63,69.58]
[1765894708595,1.17,127.67,127.64,1.92084415]
[1765894708596,7.0518,127.66,127.64,1.92084415]
[1765894709098,8.2223,127.65,127.6,3.26]
[1765894709299,1.17,127.65,127.62,1.92108091]
[1765894709499,1.2302615,127.65,127.62,0.05855208]
[1765894709796,8.2227,127.64,127.62,0.05855208]
[1765894710098,0.0602615,127.65,127.62,3.31855208]
[1765894710602,0.0602615,127.65,127.64,3.26]
[1765894711590,0.0602615,127.65,127.62,0.05855208]
[1765894711789,112.9601615,127.65,127.62,0.05855208]
[1765894712096,10.253,127.64,127.58,7.0558]
[1765894712297,10.253,127.64,127.6,1.91698163]
[1765894712602,3.2,127.64,127.6,1.91698163]
[1765894712904,10.2538,127.62,127.61,0.05713829]
[1765894713201,7.0538,127.62,127.61,0.05713829]
[1765894713597,3.25058815,127.63,127.61,0.05713829]
[1765894714301,3.31,127.62,127.61,0.05713829]
[1765894717308,3.31,127.62,127.57,3.14]
[1765894717502,3.31,127.62,127.59,1.91333817]
[1765894717900,3.31,127.62,127.58,1.91333817]
[1765894718303,10.3638,127.62,127.59,0.06010469]
[1765894718503,7.0538,127.62,127.59,3.16010469]
[1765894718815,66.47058815,127.63,127.6,1.91329611]
[1765894719002,66.47058815,127.63,127.59,3.16010469]
[1765894719003,7.0538,127.62,127.59,3.16010469]
[1765894719202,7.0538,127.62,127.6,1.91269554]
[1765894719406,7.0545,127.61,127.59,0.06010469]
[1765894719608,10.3645,127.61,127.59,0.06010469]
[1765894720000,7.0545,127.61,127.59,0.06010469]
[1765894720707,10.3645,127.61,127.59,0.06010469]
[1765894722810,7.0545,127.61,127.59,0.06010469]
[1765894723612,3.31,127.6,127.59,0.06010469]
[1765894723918,10.3645,127.61,127.59,0.06010469]
[1765894724105,7.0545,127.61,127.59,3.16010469]
[1765894724307,7.0545,127.61,127.59,0.06010469]
[1765894725017,10.3645,127.61,127.59,0.06010469]
[1765894725310,3.31,127.6,127.59,0.06010469]
[1765894726210,3.31,127.59,127.53,10.1586]
[1765894726424,3.31,127.59,127.56,1.91726275]
[1765894726806,3.31,127.58,127.55,1.91726275]
[1765894727114,3.31,127.58,127.55,1.96666306]
[1765894727415,3.35988668,127.58,127.55,0.04940031]
[1765894727607,7.0565,127.57,127.55,1.96628741]
[1765894727915,7.0565,127.57,127.55,0.04940031]
[1765894728114,7.0565,127.57,127.55,1.96628741]
[1765894728315,7.0565,127.57,127.55,0.04940031]
[1765894728509,7.0565,127.57,127.55,1.96597965]
[1765894728709,7.0565,127.57,127.55,0.04940031]
[1765894728911,7.0565,127.57,127.55,1.96597965]
[1765894729215,7.0565,127.57,127.55,0.04940031]
[1765894729419,7.0565,127.57,127.55,1.96590953]
[1765894729715,7.0565,127.57,127.55,0.04940031]
[1765894729918,7.0565,127.57,127.55,1.96590953]
[1765894730118,7.0565,127.57,127.55,0.04940031]
[1765894730319,7.0565,127.57,127.55,1.96590953]
[1765894730619,7.0565,127.57,127.55,0.04940031]
[1765894730820,10.3665,127.57,127.55,1.9661032]
[1765894731020,10.3665,127.57,127.55,0.04940031]
[1765894731319,10.3665,127.57,127.55,1.9661032]
[1765894731618,0.04988668,127.58,127.55,3.14940031]
[1765894731804,0.04988668,127.58,127.56,1.91751364]
[1765894731805,3.35988668,127.58,127.56,1.91751364]
[1765894732415,10.3665,127.57,127.56,1.91751364]
[1765894732716,3.31,127.57,127.56,1.91751364]
[1765894732916,7.0565,127.57,127.56,1.91751364]
[1765894733322,10.3665,127.57,127.56,1.91751364]
[1765894734017,7.057,127.56,127.55,0.04940031]
[1765894735118,10.367,127.56,127.55,0.04940031]
[1765894735418,3.31,127.56,127.5,7.0603]
[1765894735606,3.31,127.56,127.54,1.92227716]
[1765894736118,10.3676,127.55,127.54,1.92227716]
[1765894737215,7.0576,127.55,127.54,1.92227716]
[1765894737621,23.36025088,127.55,127.54,5.02227716]
[1765894737818,7.11528401,127.56,127.54,3.1]
[1765894738116,10.3681,127.54,127.53,0.02275503]
[1765894738521,69.79,127.54,127.48,3.1]
[1765894738821,3.31,127.53,127.5,1.92480631]
[1765894739413,7.0598,127.51,127.5,1.92480631]
[1765894740219,7.0592,127.52,127.5,1.92480631]
[1765894740516,0.05316625,127.53,127.51,5.02480631]
[1765894740716,23.74404148,127.55,127.53,3.1]
[1765894740925,0.05218402,127.55,127.54,1.92660668]
[1765894741125,0.05218402,127.55,127.53,10.1584]
[1765894741522,0.05218402,127.55,127.54,5.02781669]
[1765894741824,0.05218402,127.55,127.54,3.1]
[1765894742010,3.31,127.54,127.48,7.71004674]
[1765894742325,0.0559754,127.52,127.49,3.1]
[1765894742515,0.0559754,127.52,127.51,5.02915846]
[1765894742712,0.0559754,127.52,127.51,4.66]
[1765894743126,0.0559754,127.52,127.51,11.7198]
[1765894743518,23.50086247,127.55,127.52,3.32]
[1765894743816,3.13,127.59,127.55,3.17]
[1765894744219,3.13,127.59,127.52,7.78004674]
[1765894744419,3.13,127.59,127.55,5.10181475]
[1765894744615,0.05354217,127.58,127.57,1.93181475]
[1765894744822,112.8349,127.65,127.56,4.61004674]
[1765894745023,10.1829,127.64,127.6,5.1511454]
[1765894745222,33.40208159,127.64,127.6,3.22]
[1765894745424,7.0529,127.64,127.61,5.15311047]
[1765894745618,3.31,127.63,127.58,3.22]
[1765894745928,0.05844954,127.62,127.59,5.21296463]
[1765894746128,3.36844954,127.62,127.6,1.93313449]
[1765894746322,3.36844954,127.62,127.59,0.05983014]
[1765894746726,7.0544,127.61,127.59,0.05983014]
[1765894746915,0.05844954,127.62,127.59,3.27983014]
[1765894747115,0.05844954,127.62,127.6,5.15514858]
[1765894747322,0.05844954,127.62,127.59,3.27983014]
[1765894747526,0.05844954,127.62,127.6,1.93721225]
[1765894748126,0.05844954,127.62,127.6,5.15721225]
[1765894748328,0.05844954,127.62,127.61,1.93860585]
[1765894748731,0.05844954,127.62,127.61,1.93869922]
[1765894748930,0.05844954,127.62,127.61,5.15869922]
[1765894749231,0.05844954,127.62,127.61,3.22]
[1765894751427,5.74328847,127.67,127.63,3.22]
[1765894751632,12.79358847,127.69,127.66,3.22]
[1765894751930,3.31,127.66,127.62,3.22]
[1765894752133,5.74328847,127.67,127.64,3.22]
[1765894752332,9.05328847,127.68,127.64,3.22]
[1765894752633,0.05423864,127.67,127.64,3.27354562]
[1765894752833,9.10752711,127.67,127.64,3.27354562]
[1765894753039,3.36423864,127.67,127.64,3.27354562]
[1765894753229,0.05423864,127.67,127.64,3.27354562]
[1765894753528,0.05423864,127.67,127.65,5.16295216]
[1765894753733,0.05423864,127.67,127.65,3.22]
[1765894756421,0.05423864,127.67,127.64,3.27354562]
[1765894757132,0.05423864,127.67,127.65,1.94181209]
[1765894757541,0.05423864,127.67,127.64,3.27354562]
[1765894757736,3.31,127.66,127.64,0.05354562]
[1765894758535,10.3618,127.66,127.64,0.05354562]
[1765894761342,3.31,127.65,127.64,0.05354562]
[1765894761530,10.3618,127.66,127.64,0.05354562]
[1765894763048,10.3618,127.66,127.64,3.27354562]
[1765894763049,7.0518,127.66,127.64,3.27354562]
[1765894764047,10.3618,127.66,127.64,0.05354562]
[1765894766745,7.10513864,127.67,127.64,3.27354562]
[1765894767440,7.0515,127.66,127.64,0.05354562]
[1765894767945,7.052,127.65,127.64,0.05354562]
[1765894768956,10.362,127.65,127.64,0.05354562]
[1765894769749,10.3641,127.62,127.59,3.22]
[1765894770047,10.3641,127.62,127.6,1.93451369]
[1765894770447,7.0541,127.62,127.6,1.93451369]
[1765894770749,7.0542,127.61,127.6,1.99007278]
[1765894770948,7.0542,127.61,127.6,0.05555909]
[1765894771151,7.0542,127.61,127.6,1.99081182]
[1765894771445,7.0542,127.61,127.6,0.05555909]
[1765894771653,7.0542,127.61,127.6,1.98991902]
[1765894771956,7.0542,127.61,127.6,0.05555909]
[1765894772256,7.1089678,127.62,127.6,5.2070775]
[1765894772551,0.0552678,127.62,127.6,3.27555909]
[1765894773554,0.0552678,127.62,127.6,10.32985909]
[1765894773956,0.0552678,127.62,127.61,3.11]
[1765894776555,7.052,127.66,127.62,3.11]
[1765894776755,7.052,127.66,127.64,5.04624541]
[1765894776958,7.052,127.66,127.64,3.11]
[1765894777561,7.10943409,127.66,127.64,3.16581165]
[1765894778059,0.05743409,127.66,127.64,3.16581165]
[1765894779650,0.05743409,127.66,127.64,0.05581165]
[1765894779853,7.052,127.65,127.64,0.05581165]
[1765894780157,10.442,127.65,127.64,0.05581165]
[1765894780755,7.052,127.65,127.64,0.05581165]
[1765894781260,7.10893409,127.66,127.64,0.05581165]
[1765894781854,7.052,127.65,127.64,0.05581165]
[1765894782254,10.442,127.65,127.64,0.05581165]
[1765894783662,7.0539,127.62,127.59,3.11]
[1765894783959,7.0539,127.62,127.61,1.94130157]
[1765894784353,7.0539,127.62,127.6,1.94130157]
[1765894784354,10.4439,127.62,127.6,1.94130157]
[1765894784551,10.4439,127.62,127.6,1.99887642]
[1765894784755,10.50322866,127.62,127.6,0.05757485]
[1765894784957,10.50322866,127.62,127.6,2.00058064]
[1765894785258,10.50322866,127.62,127.6,0.05757485]
[1765894785461,10.50322866,127.62,127.6,2.0032481]
[1765894785758,10.50322866,127.62,127.6,0.05757485]
[1765894785958,10.50322866,127.62,127.6,2.00316549]
[1765894786159,10.50322866,127.62,127.6,0.05757485]
[1765894786365,10.50322866,127.62,127.6,2.00334005]
[1765894786668,10.50322866,127.62,127.6,0.05757485]
[1765894786857,10.50322866,127.62,127.6,2.00409372]
[1765894787057,10.50322866,127.62,127.6,0.05757485]
[1765894787252,10.4442,127.61,127.6,2.00404809]
[1765894787467,10.4442,127.61,127.6,0.05757485]
[1765894787768,10.4442,127.61,127.6,2.0052629]
[1765894787957,10.4442,127.61,127.6,0.05757485]
[1765894788159,10.4442,127.61,127.6,2.00639909]
[1765894788358,7.0542,127.61,127.6,0.05757485]
[1765894788558,7.0542,127.61,127.6,2.00709979]
[1765894788758,7.0542,127.61,127.6,0.05757485]
[1765894789070,0.05932866,127.62,127.6,5.14812427]
[1765894789364,0.05932866,127.62,127.61,1.9517109]
[1765894789557,0.05932866,127.62,127.61,3.14]
[1765894790160,0.05932866,127.62,127.61,10.1942]
[1765894793058,5.80169664,127.67,127.63,3.14]
[1765894793059,12.85269664,127.67,127.63,3.14]
[1765894793263,3.37,127.67,127.64,1.94259119]
[1765894793567,10.422,127.65,127.64,1.94259119]
[1765894793864,10.422,127.65,127.62,1.94259119]
[1765894793865,16.22558348,127.65,127.62,1.94259119]
[1765894794070,10.47454342,127.65,127.62,5.13571798]
[1765894794367,10.47454342,127.65,127.63,1.94347957]
[1765894794566,7.10454342,127.65,127.62,3.19223841]
[1765894794761,7.10454342,127.65,127.63,1.94201159]
[1765894795353,7.10454342,127.65,127.64,1.94201159]
[1765894795553,7.10454342,127.65,127.63,1.94201159]
[1765894796963,7.10454342,127.65,127.63,5.08201159]
[1765894797167,7.10454342,127.65,127.64,1.94201159]
[1765894797770,0.05254342,127.65,127.64,1.94201159]
[1765894798463,7.10454342,127.65,127.64,1.94201159]
[1765894799371,10.47454342,127.65,127.63,1.94201159]
[1765894799569,10.47454342,127.65,127.62,0.05223841]
[1765894799878,3.37,127.63,127.62,0.05223841]
[1765894801476,9.1756614,127.63,127.62,0.05223841]
[1765894801674,10.4231,127.63,127.62,0.05223841]
[1765894804772,16.2288113,127.63,127.62,0.05223841]
[1765894806078,9.1757113,127.64,127.62,0.05223841]
[1765894806777,3.37,127.63,127.62,0.05223841]
[1765894807278,9.1757113,127.64,127.62,0.05223841]
[1765894807676,16.2285113,127.64,127.62,0.05223841]
[1765894808172,0.05254342,127.65,127.62,3.21223841]
[1765894808368,0.05254342,127.65,127.64,3.16]
[1765894808569,0.05254342,127.65,127.64,10.2126]
[1765894809188,8.81869353,127.72,127.67,3.16]
[1765894809376,8.81869353,127.72,127.64,114.20698437]
[1765894809377,3.37,127.7,127.65,3.16]
[1765894809681,3.37,127.68,127.67,1.94625185]
[1765894809875,3.37,127.7,127.67,5.10625185]
[1765894810076,25.95729309,127.72,127.68,5.10625185]
[1765894810277,3.42033148,127.71,127.69,0.05805163]
[1765894810484,3.42033148,127.71,127.69,2.00430348]
[1765894810876,3.42033148,127.71,127.69,0.05805163]
[1765894811081,3.42033148,127.71,127.69,2.00299539]
[1765894811279,3.42033148,127.71,127.69,0.05805163]
[1765894811480,3.42033148,127.71,127.69,2.0018827]
[1765894811679,3.42033148,127.71,127.69,0.05805163]
[1765894811880,3.42033148,127.71,127.69,2.00226004]
[1765894812079,3.42033148,127.71,127.69,0.05805163]
[1765894812281,3.42033148,127.71,127.69,2.00264616]
[1765894812481,3.42033148,127.71,127.69,0.05805163]
[1765894812670,3.42033148,127.71,127.69,2.00213637]
[1765894812877,3.42033148,127.71,127.7,1.94408474]
[1765894813077,3.42033148,127.71,127.69,0.05805163]
[1765894813380,3.37,127.7,127.69,0.05805163]
[1765894818896,0.05033148,127.71,127.69,3.21805163]
[1765894819088,0.05033148,127.71,127.7,1.94471119]
[1765894819497,0.05033148,127.71,127.7,8.05229556]
[1765894819694,3.37,127.77,127.73,3.16]
[1765894819888,3.37,127.77,127.71,2.94758437]
[1765894820191,10.4157,127.77,127.73,5.10340233]
[1765894820391,3.37,127.76,127.73,3.16]
[1765894820689,3.42028042,127.76,127.74,1.94200025]
[1765894821282,0.05028042,127.76,127.74,5.10200025]
[1765894821595,0.05028042,127.76,127.74,3.16]
[1765894822486,3.42028042,127.76,127.73,3.21691911]
[1765894822688,3.42028042,127.76,127.74,1.93910573]
[1765894823295,10.46628042,127.76,127.74,1.93910573]
[1765894827000,0.05028042,127.76,127.74,5.09910573]
[1765894827193,0.05028042,127.76,127.75,1.9351084]
[1765894827896,0.05028042,127.76,127.75,5.0951084]
[1765894828098,0.05028042,127.76,127.73,2.99842251]
[1765894829101,0.05028042,127.76,127.75,1.93348767]
[1765894829801,3.42028042,127.76,127.75,1.93348767]
[1765894830000,3.42028042,127.76,127.74,1.93348767]
[1765894830200,10.46628042,127.76,127.75,1.93348767]
[1765894830397,0.05028042,127.76,127.74,3.16]
[1765894831103,3.42028042,127.76,127.75,1.93263606]
[1765894831292,3.42028042,127.76,127.74,1.93263606]
[1765894831602,3.42028042,127.76,127.75,1.93276593]
[1765894832102,0.05028042,127.76,127.75,1.93276593]
[1765894835704,3.22028042,127.76,127.75,1.93276593]
[1765894835902,0.05028042,127.76,127.75,1.93276593]
[1765894838901,0.05028042,127.76,127.74,5.08276593]
[1765894839117,0.05028042,127.76,127.74,3.15]
[1765894839623,7.09628042,127.76,127.75,1.93214787]
[1765894840624,10.26628042,127.76,127.75,1.93214787]
[1765894841429,3.17,127.74,127.73,0.05691911]
[1765894841628,6.1115034,127.74,127.73,0.05691911]
[1765894842328,3.22028042,127.76,127.73,3.20691911]
[1765894842536,3.22028042,127.76,127.74,1.93311346]
[1765894843226,7.0465,127.75,127.74,1.93311346]
[1765894843431,0.05028042,127.76,127.75,3.15]
[1765894843834,0.05028042,127.76,127.73,3.20691911]
[1765894844135,0.05028042,127.76,127.75,1.9330615]
[1765894844525,3.39028042,127.76,127.75,1.9330615]
[1765894844725,0.05028042,127.76,127.75,1.9330615]
[1765894848535,0.05028042,127.76,127.75,5.1530615]
[1765894848831,0.05028042,127.76,127.75,3.22]
[1765894855831,6.2215034,127.82,127.76,3.2]
[1765894856034,6.2215034,127.82,127.78,3.2]
[1765894856336,6.2215034,127.93,127.88,3.2]
[1765894856541,6.2215034,127.89,127.86,66.36]
[1765894857034,6.27356467,127.89,127.86,69.61523965]
[1765894857342,3.33206127,127.89,127.86,69.61523965]
[1765894857532,3.33206127,127.89,127.87,1.93593665]
[1765894858037,0.05206127,127.89,127.87,1.93593665]
[1765894858540,0.05206127,127.89,127.88,3.2]
[1765894859831,3.28,127.95,127.89,3.2]
[1765894860140,3.28,127.95,127.91,3.2]
[1765894860435,7.0367,127.93,127.91,3.2]
[1765894860634,3.28,127.94,127.91,3.2]
[1765894860824,3.33196104,127.94,127.91,3.24972176]
[1765894861025,0.05196104,127.94,127.93,1.92747116]
[1765894861335,3.33196104,127.94,127.93,1.92583017]
[1765894861636,3.33196104,127.94,127.91,0.04972176]
[1765894861637,0.05196104,127.94,127.91,3.24972176]
[1765894861833,0.05196104,127.94,127.93,1.9268404]